[Event "Titled Tuesday Blitz February 07 Early 2023"]
[White "Defend, Balint"]
[Black "Aradhya, Garg"]
[WhiteFideId "17004853"]
[BlackFideId "25006746"]
[WhiteElo "1673"]
[BlackElo "2284"]
[Result "1/2-1/2"]
[Round "07"]
[TimeControl "180+2"]
[Date "2023.02.07"]
[WhiteClock "0:00:23"]
[BlackClock "0:00:32"]

1. e4 {[%clk 0:03:00]}  e5 {[%clk 0:02:59]} 2. Nf3 {[%clk 0:03:00]}  Nc6 {[%clk 0:03:00]} 3. Bc4 {[%clk 0:03:01]}  Nf6 {[%clk 0:02:59]} 4. d4 {[%clk 0:03:00]}  exd4 {[%clk 0:02:57]} 5. e5 {[%clk 0:03:01]}  Ne4 {[%clk 0:02:55]} 6. Qe2 {[%clk 0:03:01]}  Nc5 {[%clk 0:02:54]} 7. O-O {[%clk 0:03:02]}  Be7 {[%clk 0:02:53]} 8. Rd1 {[%clk 0:03:01]}  Ne6 {[%clk 0:02:53]} 9. Bxe6 {[%clk 0:03:01]}  dxe6 {[%clk 0:02:54]} 10. Nc3 {[%clk 0:03:01]}  O-O {[%clk 0:02:53]} 11. Nb5 {[%clk 0:03:01]}  Bc5 {[%clk 0:02:46]} 12. c3 {[%clk 0:02:59]}  Bb6 {[%clk 0:02:40]} 13. Nbxd4 {[%clk 0:02:50]}  Nxd4 {[%clk 0:02:38]} 14. Nxd4 {[%clk 0:02:50]}  Qe7 {[%clk 0:02:33]} 15. Nf3 {[%clk 0:02:47]}  h6 {[%clk 0:02:30]} 16. h4 {[%clk 0:02:40]}  Bd7 {[%clk 0:02:29]} 17. a4 {[%clk 0:02:33]}  a5 {[%clk 0:02:23]} 18. b3 {[%clk 0:02:33]}  Rfd8 {[%clk 0:02:22]} 19. Ba3 {[%clk 0:02:29]}  Qe8 {[%clk 0:02:22]} 20. Nd4 {[%clk 0:02:29]}  Bc6 {[%clk 0:02:20]} 21. Qg4 {[%clk 0:02:16]}  Rd5 {[%clk 0:02:13]} 22. Nf3 {[%clk 0:01:54]}  Rad8 {[%clk 0:02:11]} 23. Rxd5 {[%clk 0:01:54]}  Rxd5 {[%clk 0:02:09]} 24. c4 {[%clk 0:01:37]}  Rd3 {[%clk 0:02:07]} 25. c5 {[%clk 0:01:37]}  Ba7 {[%clk 0:02:00]} 26. Nd4 {[%clk 0:01:33]}  Bd5 {[%clk 0:01:56]} 27. Rd1 {[%clk 0:01:24]}  Rxd1+ {[%clk 0:01:47]} 28. Qxd1 {[%clk 0:01:25]}  Qe7 {[%clk 0:01:45]} 29. Qc2 {[%clk 0:01:19]}  Qxh4 {[%clk 0:01:41]} 30. Qc3 {[%clk 0:01:18]}  Bb8 {[%clk 0:01:27]} 31. Nb5 {[%clk 0:01:14]}  Qg5 {[%clk 0:01:14]} 32. f3 {[%clk 0:01:12]}  f6 {[%clk 0:01:03]} 33. exf6 {[%clk 0:01:06]}  gxf6 {[%clk 0:01:04]} 34. Bc1 {[%clk 0:01:02]}  Qg6 {[%clk 0:01:03]} 35. Qxa5 {[%clk 0:00:54]}  Bxf3 {[%clk 0:01:03]} 36. Qd2 {[%clk 0:00:52]}  Bd5 {[%clk 0:01:02]} 37. Nc3 {[%clk 0:00:48]}  Bc6 {[%clk 0:00:58]} 38. b4 {[%clk 0:00:44]}  Ba7 {[%clk 0:00:53]} 39. Qd8+ {[%clk 0:00:41]}  Kg7 {[%clk 0:00:33]} 40. Qxc7+ {[%clk 0:00:41]}  Kg8 {[%clk 0:00:33]} 41. Qd8+ {[%clk 0:00:38]}  Kf7 {[%clk 0:00:32]} 42. Qc7+ {[%clk 0:00:33]}  Ke8 {[%clk 0:00:32]} 43. Qc8+ {[%clk 0:00:31]}  Ke7 {[%clk 0:00:32]} 44. Qc7+ {[%clk 0:00:31]}  Ke8 {[%clk 0:00:32]} 45. Qc8+ {[%clk 0:00:29]}  Ke7 {[%clk 0:00:32]} 46. Qc7+ {[%clk 0:00:23]}  Ke8 {[%clk 0:00:32]} 1/2-1/2


[Site "https://www.chess.com"]

[Event "Titled Tuesday Blitz February 07 Early 2023"]
[White "Bilych, Olexiy"]
[Black "Ingebretsen, Jens E"]
[WhiteFideId "14156504"]
[BlackFideId "1522965"]
[WhiteElo "2441"]
[BlackElo "2342"]
[Result "1-0"]
[Round "07"]
[TimeControl "180+2"]
[Date "2023.02.07"]
[WhiteClock "0:00:30"]
[BlackClock "0:00:11"]

1. d4 {[%clk 0:03:00]}  Nf6 {[%clk 0:02:58]} 2. c4 {[%clk 0:03:01]}  e6 {[%clk 0:02:59]} 3. Nc3 {[%clk 0:03:01]}  Bb4 {[%clk 0:02:59]} 4. e3 {[%clk 0:03:01]}  O-O {[%clk 0:02:59]} 5. Nf3 {[%clk 0:03:02]}  c5 {[%clk 0:02:59]} 6. Bd3 {[%clk 0:03:02]}  d5 {[%clk 0:02:59]} 7. O-O {[%clk 0:03:02]}  dxc4 {[%clk 0:02:58]} 8. Bxc4 {[%clk 0:03:03]}  Nc6 {[%clk 0:02:59]} 9. a3 {[%clk 0:03:00]}  Bxc3 {[%clk 0:02:59]} 10. bxc3 {[%clk 0:03:00]}  Qc7 {[%clk 0:03:00]} 11. Be2 {[%clk 0:02:58]}  Rd8 {[%clk 0:02:57]} 12. Bb2 {[%clk 0:02:58]}  e5 {[%clk 0:02:56]} 13. h3 {[%clk 0:02:44]}  e4 {[%clk 0:02:49]} 14. Nd2 {[%clk 0:02:44]}  Bf5 {[%clk 0:02:49]} 15. a4 {[%clk 0:02:23]}  Rac8 {[%clk 0:02:39]} 16. Ba3 {[%clk 0:02:22]}  Nd5 {[%clk 0:02:26]} 17. Rc1 {[%clk 0:02:17]}  cxd4 {[%clk 0:02:11]} 18. cxd4 {[%clk 0:02:16]}  Qd7 {[%clk 0:02:10]} 19. Nc4 {[%clk 0:01:52]}  Ndb4 {[%clk 0:01:52]} 20. Qd2 {[%clk 0:01:29]}  Qe7 {[%clk 0:00:50]} 21. Na5 {[%clk 0:01:05]}  Bxh3 {[%clk 0:00:23]} 22. gxh3 {[%clk 0:00:38]}  Qg5+ {[%clk 0:00:23]} 23. Bg4 {[%clk 0:00:38]}  Qxa5 {[%clk 0:00:24]} 24. Bxc8 {[%clk 0:00:32]}  Rxc8 {[%clk 0:00:13]} 25. d5 {[%clk 0:00:31]}  Ne5 {[%clk 0:00:11]} 26. Rxc8+ {[%clk 0:00:30]} 1-0


[Site "https://www.chess.com"]

[Event "Titled Tuesday Blitz February 07 Early 2023"]
[White "Costachi, Mihnea"]
[Black "Jaskolka, Tomasz"]
[WhiteFideId "1217518"]
[BlackFideId "1170791"]
[WhiteElo "2476"]
[BlackElo "2238"]
[Result "1-0"]
[Round "07"]
[TimeControl "180+2"]
[Date "2023.02.07"]
[WhiteClock "0:00:53"]
[BlackClock "0:00:05"]

1. Nc3 {[%clk 0:03:00]}  d5 {[%clk 0:02:57]} 2. d4 {[%clk 0:03:00]}  c6 {[%clk 0:02:57]} 3. Bf4 {[%clk 0:03:00]}  Nf6 {[%clk 0:02:56]} 4. e3 {[%clk 0:03:00]}  Bf5 {[%clk 0:02:55]} 5. f3 {[%clk 0:03:01]}  h5 {[%clk 0:02:54]} 6. Bd3 {[%clk 0:02:58]}  Bxd3 {[%clk 0:02:53]} 7. Qxd3 {[%clk 0:02:59]}  e6 {[%clk 0:02:53]} 8. Nge2 {[%clk 0:02:52]}  Nbd7 {[%clk 0:02:52]} 9. O-O {[%clk 0:02:51]}  Be7 {[%clk 0:02:50]} 10. e4 {[%clk 0:02:51]}  g6 {[%clk 0:02:44]} 11. a4 {[%clk 0:02:42]}  a5 {[%clk 0:02:41]} 12. Kh1 {[%clk 0:02:34]}  h4 {[%clk 0:02:40]} 13. h3 {[%clk 0:02:31]}  Nh5 {[%clk 0:02:38]} 14. Bh2 {[%clk 0:02:32]}  Nb6 {[%clk 0:02:25]} 15. b3 {[%clk 0:02:27]}  Bd6 {[%clk 0:02:24]} 16. e5 {[%clk 0:02:26]}  Be7 {[%clk 0:02:22]} 17. Nf4 {[%clk 0:02:26]}  Nxf4 {[%clk 0:02:17]} 18. Bxf4 {[%clk 0:02:27]}  Rh5 {[%clk 0:01:58]} 19. Ne2 {[%clk 0:02:26]}  Kf8 {[%clk 0:01:55]} 20. c4 {[%clk 0:02:24]}  Kg7 {[%clk 0:01:55]} 21. Rab1 {[%clk 0:02:07]}  Nd7 {[%clk 0:01:38]} 22. c5 {[%clk 0:02:07]}  b6 {[%clk 0:01:31]} 23. cxb6 {[%clk 0:01:58]}  Qxb6 {[%clk 0:01:31]} 24. Bd2 {[%clk 0:01:54]}  c5 {[%clk 0:01:24]} 25. dxc5 {[%clk 0:01:51]}  Nxc5 {[%clk 0:00:54]} 26. Qd4 {[%clk 0:01:50]}  Nd7 {[%clk 0:00:55]} 27. Qxb6 {[%clk 0:01:43]}  Nxb6 {[%clk 0:00:54]} 28. Rfc1 {[%clk 0:01:42]}  Nd7 {[%clk 0:00:49]} 29. Rc7 {[%clk 0:01:40]}  Rd8 {[%clk 0:00:44]} 30. Nd4 {[%clk 0:01:34]}  Nxe5 {[%clk 0:00:22]} 31. Rxe7 {[%clk 0:01:33]}  Rc8 {[%clk 0:00:20]} 32. Nxe6+ {[%clk 0:01:26]}  Kf6 {[%clk 0:00:20]} 33. Rc7 {[%clk 0:01:26]}  Re8 {[%clk 0:00:14]} 34. Nf4 {[%clk 0:01:26]}  Rf5 {[%clk 0:00:14]} 35. Nxd5+ {[%clk 0:01:25]}  Kg7 {[%clk 0:00:14]} 36. Bxa5 {[%clk 0:01:23]}  Nxf3 {[%clk 0:00:14]} 37. gxf3 {[%clk 0:01:19]}  Rxd5 {[%clk 0:00:14]} 38. Bc3+ {[%clk 0:01:08]}  Kh6 {[%clk 0:00:15]} 39. Rxf7 {[%clk 0:01:02]}  Re2 {[%clk 0:00:15]} 40. Rg1 {[%clk 0:00:54]}  Rd3 {[%clk 0:00:09]} 41. Bf6 {[%clk 0:00:54]}  Rf2 {[%clk 0:00:04]} 42. Bg5+ {[%clk 0:00:53]}  Kh5 {[%clk 0:00:05]} 43. Rh7# {[%clk 0:00:53]} 1-0


[Site "https://www.chess.com"]

[Event "Titled Tuesday Blitz February 07 Early 2023"]
[White "Dehtiarov, Roman"]
[Black "Yeritsyan, Hayk"]
[WhiteFideId "14186640"]
[BlackFideId "13307320"]
[WhiteElo "2289"]
[BlackElo "2241"]
[Result "1-0"]
[Round "07"]
[TimeControl "180+2"]
[Date "2023.02.07"]
[WhiteClock "0:02:16"]
[BlackClock "0:01:12"]

1. e4 {[%clk 0:02:59]}  c5 {[%clk 0:02:53]} 2. Nc3 {[%clk 0:02:57]}  Nc6 {[%clk 0:02:53]} 3. f4 {[%clk 0:02:57]}  g6 {[%clk 0:02:52]} 4. Nf3 {[%clk 0:02:58]}  Bg7 {[%clk 0:02:52]} 5. Bb5 {[%clk 0:02:59]}  Nd4 {[%clk 0:02:50]} 6. O-O {[%clk 0:02:59]}  Nxb5 {[%clk 0:02:49]} 7. Nxb5 {[%clk 0:03:00]}  Nf6 {[%clk 0:02:48]} 8. Nc3 {[%clk 0:02:59]}  d6 {[%clk 0:02:45]} 9. d3 {[%clk 0:03:00]}  O-O {[%clk 0:02:45]} 10. Qe1 {[%clk 0:03:00]}  Rb8 {[%clk 0:02:37]} 11. h3 {[%clk 0:03:00]}  b5 {[%clk 0:02:37]} 12. Be3 {[%clk 0:02:59]}  b4 {[%clk 0:02:37]} 13. Ne2 {[%clk 0:02:59]}  a5 {[%clk 0:02:34]} 14. Qh4 {[%clk 0:02:58]}  d5 {[%clk 0:02:30]} 15. e5 {[%clk 0:02:58]}  Nd7 {[%clk 0:02:24]} 16. e6 {[%clk 0:02:58]}  Nf6 {[%clk 0:02:23]} 17. exf7+ {[%clk 0:02:56]}  Rxf7 {[%clk 0:02:24]} 18. Ne5 {[%clk 0:02:54]}  Rf8 {[%clk 0:02:23]} 19. Bxc5 {[%clk 0:02:53]}  Ba6 {[%clk 0:02:03]} 20. Nd4 {[%clk 0:02:41]}  Qe8 {[%clk 0:01:46]} 21. Rae1 {[%clk 0:02:32]}  Bc8 {[%clk 0:01:42]} 22. Nec6 {[%clk 0:02:26]}  Rb7 {[%clk 0:01:42]} 23. Rxe7 {[%clk 0:02:24]}  Rxe7 {[%clk 0:01:41]} 24. Nxe7+ {[%clk 0:02:25]}  Kh8 {[%clk 0:01:40]} 25. Re1 {[%clk 0:02:25]}  Qf7 {[%clk 0:01:39]} 26. Nxc8 {[%clk 0:02:21]}  Rxc8 {[%clk 0:01:39]} 27. Re7 {[%clk 0:02:22]}  Qg8 {[%clk 0:01:33]} 28. Ne6 {[%clk 0:02:18]}  Nd7 {[%clk 0:01:12]} 29. Rxg7 {[%clk 0:02:16]} 1-0


[Site "https://www.chess.com"]

[Event "Titled Tuesday Blitz February 07 Early 2023"]
[White "Weetik, Vjacheslav"]
[Black "Lorenzo De La Riva, Lazaro"]
[WhiteFideId "4153472"]
[BlackFideId "2268809"]
[WhiteElo "2423"]
[BlackElo "2404"]
[Result "0-1"]
[Round "07"]
[TimeControl "180+2"]
[Date "2023.02.07"]
[WhiteClock "0:00:05"]
[BlackClock "0:02:11"]

1. d4 {[%clk 0:02:59]}  d5 {[%clk 0:02:59]} 2. c4 {[%clk 0:02:57]}  e6 {[%clk 0:02:59]} 3. Nc3 {[%clk 0:02:55]}  Nf6 {[%clk 0:02:58]} 4. cxd5 {[%clk 0:02:55]}  exd5 {[%clk 0:02:59]} 5. Bg5 {[%clk 0:02:55]}  c6 {[%clk 0:02:59]} 6. e3 {[%clk 0:02:55]}  h6 {[%clk 0:02:59]} 7. Bh4 {[%clk 0:02:52]}  Be7 {[%clk 0:02:59]} 8. Bd3 {[%clk 0:02:51]}  O-O {[%clk 0:02:59]} 9. Nge2 {[%clk 0:02:46]}  Re8 {[%clk 0:02:58]} 10. O-O {[%clk 0:02:29]}  Nbd7 {[%clk 0:02:56]} 11. f3 {[%clk 0:02:26]}  b5 {[%clk 0:02:56]} 12. Kh1 {[%clk 0:02:13]}  a5 {[%clk 0:02:51]} 13. Bf2 {[%clk 0:02:03]}  Ba6 {[%clk 0:02:48]} 14. Ng3 {[%clk 0:01:54]}  b4 {[%clk 0:02:44]} 15. Na4 {[%clk 0:01:53]}  Bxd3 {[%clk 0:02:42]} 16. Qxd3 {[%clk 0:01:52]}  c5 {[%clk 0:02:43]} 17. dxc5 {[%clk 0:01:41]}  Bxc5 {[%clk 0:02:44]} 18. Nf5 {[%clk 0:01:35]}  Ne5 {[%clk 0:02:41]} 19. Qb5 {[%clk 0:01:11]}  Ba7 {[%clk 0:02:37]} 20. Rad1 {[%clk 0:01:04]}  Rb8 {[%clk 0:02:33]} 21. Qa6 {[%clk 0:01:00]}  Ra8 {[%clk 0:02:30]} 22. Qb5 {[%clk 0:00:51]}  Rb8 {[%clk 0:02:28]} 23. Qa6 {[%clk 0:00:50]}  Ra8 {[%clk 0:02:27]} 24. Qe2 {[%clk 0:00:46]}  Qd7 {[%clk 0:02:26]} 25. e4 {[%clk 0:00:34]}  Qxa4 {[%clk 0:02:25]} 26. Bxa7 {[%clk 0:00:33]}  Rxa7 {[%clk 0:02:24]} 27. Qf2 {[%clk 0:00:34]}  Rd7 {[%clk 0:02:23]} 28. Qg3 {[%clk 0:00:34]}  Ng6 {[%clk 0:02:22]} 29. b3 {[%clk 0:00:11]}  Qxa2 {[%clk 0:02:15]} 30. Ra1 {[%clk 0:00:07]}  Qxb3 {[%clk 0:02:12]} 31. Rxa5 {[%clk 0:00:06]}  dxe4 {[%clk 0:02:11]} 32. Nxh6+ {[%clk 0:00:05]} 0-1


[Site "https://www.chess.com"]

[Event "Titled Tuesday Blitz February 07 Early 2023"]
[White "Gharibyan, Mamikon"]
[Black "Fernandez Garcia, Gumersindo"]
[WhiteFideId "13308300"]
[BlackFideId "24516740"]
[WhiteElo "2500"]
[BlackElo "2160"]
[Result "1-0"]
[Round "07"]
[TimeControl "180+2"]
[Date "2023.02.07"]
[WhiteClock "0:01:39"]
[BlackClock "0:00:08"]

1. e4 {[%clk 0:03:00]}  d6 {[%clk 0:02:53]} 2. d4 {[%clk 0:02:57]}  Nf6 {[%clk 0:02:54]} 3. Nc3 {[%clk 0:02:56]}  e5 {[%clk 0:02:55]} 4. Nf3 {[%clk 0:02:54]}  Nbd7 {[%clk 0:02:54]} 5. g4 {[%clk 0:02:54]}  Be7 {[%clk 0:02:51]} 6. g5 {[%clk 0:02:52]}  Nh5 {[%clk 0:02:48]} 7. Bc4 {[%clk 0:02:53]}  g6 {[%clk 0:02:44]} 8. Be3 {[%clk 0:02:44]}  c6 {[%clk 0:02:42]} 9. Qd2 {[%clk 0:02:42]}  b5 {[%clk 0:02:41]} 10. Bb3 {[%clk 0:02:41]}  a5 {[%clk 0:02:41]} 11. a3 {[%clk 0:02:37]}  Ba6 {[%clk 0:02:35]} 12. Ne2 {[%clk 0:02:36]}  O-O {[%clk 0:02:32]} 13. Ng3 {[%clk 0:02:35]}  Ng7 {[%clk 0:02:24]} 14. h4 {[%clk 0:02:34]}  exd4 {[%clk 0:02:15]} 15. Bxd4 {[%clk 0:02:33]}  c5 {[%clk 0:02:12]} 16. Bxg7 {[%clk 0:02:32]}  Kxg7 {[%clk 0:02:12]} 17. Bd5 {[%clk 0:02:33]}  Rb8 {[%clk 0:01:59]} 18. Qc3+ {[%clk 0:02:32]}  f6 {[%clk 0:01:55]} 19. h5 {[%clk 0:02:28]}  b4 {[%clk 0:01:51]} 20. axb4 {[%clk 0:02:28]}  cxb4 {[%clk 0:01:47]} 21. Qd4 {[%clk 0:02:28]}  Qb6 {[%clk 0:01:25]} 22. hxg6 {[%clk 0:02:27]}  hxg6 {[%clk 0:00:53]} 23. e5 {[%clk 0:02:12]}  Qxd4 {[%clk 0:00:51]} 24. Nxd4 {[%clk 0:02:06]}  dxe5 {[%clk 0:00:17]} 25. Ne6+ {[%clk 0:02:04]}  Kf7 {[%clk 0:00:17]} 26. Nxf8+ {[%clk 0:01:51]}  Kxf8 {[%clk 0:00:18]} 27. Rxa5 {[%clk 0:01:51]}  Bc8 {[%clk 0:00:12]} 28. Rh8+ {[%clk 0:01:48]}  Kg7 {[%clk 0:00:12]} 29. Rg8+ {[%clk 0:01:46]}  Kh7 {[%clk 0:00:12]} 30. Ra7 {[%clk 0:01:42]}  Bd6 {[%clk 0:00:07]} 31. Rxc8 {[%clk 0:01:38]}  Rxc8 {[%clk 0:00:08]} 32. Rxd7+ {[%clk 0:01:39]} 1-0


[Site "https://www.chess.com"]

[Event "Titled Tuesday Blitz February 07 Early 2023"]
[White "Matinian, Nikita"]
[Black "Adla, Diego"]
[WhiteFideId "24129100"]
[BlackFideId "100072"]
[WhiteElo "2407"]
[BlackElo "2383"]
[Result "1/2-1/2"]
[Round "07"]
[TimeControl "180+2"]
[Date "2023.02.07"]
[WhiteClock "0:00:18"]
[BlackClock "0:00:58"]

1. e4 {[%clk 0:03:00]}  e5 {[%clk 0:03:00]} 2. Nf3 {[%clk 0:03:00]}  Nc6 {[%clk 0:02:59]} 3. Bb5 {[%clk 0:03:01]}  Bc5 {[%clk 0:02:58]} 4. c3 {[%clk 0:02:59]}  Qf6 {[%clk 0:02:56]} 5. O-O {[%clk 0:02:57]}  Nge7 {[%clk 0:02:53]} 6. d4 {[%clk 0:02:47]}  exd4 {[%clk 0:02:52]} 7. Bg5 {[%clk 0:02:47]}  Qg6 {[%clk 0:02:50]} 8. Bxe7 {[%clk 0:02:43]}  Nxe7 {[%clk 0:02:45]} 9. cxd4 {[%clk 0:02:42]}  Bb6 {[%clk 0:02:44]} 10. Nc3 {[%clk 0:02:38]}  O-O {[%clk 0:02:43]} 11. a4 {[%clk 0:01:31]}  a5 {[%clk 0:02:40]} 12. e5 {[%clk 0:01:19]}  d6 {[%clk 0:02:36]} 13. Bd3 {[%clk 0:01:19]}  Qh6 {[%clk 0:02:36]} 14. h3 {[%clk 0:01:02]}  dxe5 {[%clk 0:02:24]} 15. dxe5 {[%clk 0:01:03]}  Be6 {[%clk 0:02:24]} 16. Qe2 {[%clk 0:01:02]}  Ng6 {[%clk 0:02:20]} 17. Bxg6 {[%clk 0:00:46]}  Qxg6 {[%clk 0:02:16]} 18. Kh2 {[%clk 0:00:46]}  Rad8 {[%clk 0:02:13]} 19. Rfd1 {[%clk 0:00:45]}  Bb3 {[%clk 0:02:06]} 20. Rxd8 {[%clk 0:00:45]}  Rxd8 {[%clk 0:02:07]} 21. Re1 {[%clk 0:00:45]}  h6 {[%clk 0:02:05]} 22. Nd2 {[%clk 0:00:32]}  Be6 {[%clk 0:01:58]} 23. Nde4 {[%clk 0:00:20]}  Rd4 {[%clk 0:01:52]} 24. Ng3 {[%clk 0:00:16]}  Qd3 {[%clk 0:01:50]} 25. Qxd3 {[%clk 0:00:14]}  Rxd3 {[%clk 0:01:51]} 26. Re2 {[%clk 0:00:11]}  Bc4 {[%clk 0:01:50]} 27. Rc2 {[%clk 0:00:08]}  Bb3 {[%clk 0:01:49]} 28. Re2 {[%clk 0:00:08]}  Bd4 {[%clk 0:01:48]} 29. Nge4 {[%clk 0:00:08]}  Bc4 {[%clk 0:01:40]} 30. f4 {[%clk 0:00:04]}  b6 {[%clk 0:01:36]} 31. Rd2 {[%clk 0:00:03]}  Rxd2 {[%clk 0:01:34]} 32. Nxd2 {[%clk 0:00:04]}  Be6 {[%clk 0:01:33]} 33. Kg3 {[%clk 0:00:04]}  Kf8 {[%clk 0:01:32]} 34. Kf3 {[%clk 0:00:04]}  Ke7 {[%clk 0:01:32]} 35. g4 {[%clk 0:00:04]}  g6 {[%clk 0:01:32]} 36. Ke4 {[%clk 0:00:05]}  Bc5 {[%clk 0:01:28]} 37. Nd5+ {[%clk 0:00:04]}  Kd8 {[%clk 0:01:26]} 38. f5 {[%clk 0:00:04]}  gxf5+ {[%clk 0:01:24]} 39. gxf5 {[%clk 0:00:05]}  Bc8 {[%clk 0:01:24]} 40. Nc3 {[%clk 0:00:03]}  Bb7+ {[%clk 0:01:23]} 41. Kf4 {[%clk 0:00:04]}  Bd4 {[%clk 0:01:19]} 42. Nde4 {[%clk 0:00:04]}  Ke7 {[%clk 0:01:18]} 43. b3 {[%clk 0:00:05]}  Bg1 {[%clk 0:01:07]} 44. Kg3 {[%clk 0:00:04]}  Be3 {[%clk 0:01:06]} 45. Kf3 {[%clk 0:00:04]}  Bc1 {[%clk 0:01:05]} 46. Nb5 {[%clk 0:00:03]}  c6 {[%clk 0:00:59]} 47. Nbd6 {[%clk 0:00:03]}  Ba6 {[%clk 0:00:58]} 48. Nc3 {[%clk 0:00:03]}  Bb2 {[%clk 0:00:56]} 49. Nde4 {[%clk 0:00:03]}  b5 {[%clk 0:00:54]} 50. axb5 {[%clk 0:00:01]}  Bxb5 {[%clk 0:00:55]} 51. Nxb5 {[%clk 0:00:01]}  cxb5 {[%clk 0:00:55]} 52. Kf4 {[%clk 0:00:02]}  a4 {[%clk 0:00:55]} 53. bxa4 {[%clk 0:00:02]}  bxa4 {[%clk 0:00:55]} 54. Nc5 {[%clk 0:00:03]}  a3 {[%clk 0:00:55]} 55. f6+ {[%clk 0:00:03]}  Ke8 {[%clk 0:00:54]} 56. Nb3 {[%clk 0:00:03]}  a2 {[%clk 0:00:54]} 57. Kf5 {[%clk 0:00:03]}  a1=Q {[%clk 0:00:54]} 58. Nxa1 {[%clk 0:00:03]}  Bxa1 {[%clk 0:00:54]} 59. e6 {[%clk 0:00:04]}  fxe6+ {[%clk 0:00:49]} 60. Kxe6 {[%clk 0:00:05]}  Kf8 {[%clk 0:00:49]} 61. h4 {[%clk 0:00:05]}  Bb2 {[%clk 0:00:49]} 62. h5 {[%clk 0:00:05]}  Bc1 {[%clk 0:00:49]} 63. Kf5 {[%clk 0:00:06]}  Bg5 {[%clk 0:00:49]} 64. Kg6 {[%clk 0:00:06]}  Kg8 {[%clk 0:00:49]} 65. Kf5 {[%clk 0:00:06]}  Kf7 {[%clk 0:00:49]} 66. Kg4 {[%clk 0:00:07]}  Bxf6 {[%clk 0:00:49]} 67. Kh3 {[%clk 0:00:08]}  Bg5 {[%clk 0:00:50]} 68. Kg2 {[%clk 0:00:09]}  Kf6 {[%clk 0:00:50]} 69. Kh1 {[%clk 0:00:10]}  Bf4 {[%clk 0:00:51]} 70. Kg2 {[%clk 0:00:11]}  Kg5 {[%clk 0:00:51]} 71. Kh1 {[%clk 0:00:12]}  Be5 {[%clk 0:00:52]} 72. Kg2 {[%clk 0:00:13]}  Kxh5 {[%clk 0:00:52]} 73. Kh1 {[%clk 0:00:14]}  Kg4 {[%clk 0:00:53]} 74. Kg2 {[%clk 0:00:14]}  Kh4 {[%clk 0:00:53]} 75. Kh1 {[%clk 0:00:15]}  Kh3 {[%clk 0:00:54]} 76. Kg1 {[%clk 0:00:14]}  h5 {[%clk 0:00:54]} 77. Kh1 {[%clk 0:00:15]}  h4 {[%clk 0:00:55]} 78. Kg1 {[%clk 0:00:16]}  Kg3 {[%clk 0:00:56]} 79. Kh1 {[%clk 0:00:16]}  h3 {[%clk 0:00:56]} 80. Kg1 {[%clk 0:00:17]}  h2+ {[%clk 0:00:57]} 81. Kh1 {[%clk 0:00:18]}  Kh3 {[%clk 0:00:58]} 1/2-1/2


[Site "https://www.chess.com"]

[Event "Titled Tuesday Blitz February 07 Early 2023"]
[White "Djokovic, Nebojsa"]
[Black "Csonka, Balazs"]
[WhiteFideId "938300"]
[BlackFideId "742910"]
[WhiteElo "2119"]
[BlackElo "2496"]
[Result "1-0"]
[Round "07"]
[TimeControl "180+2"]
[Date "2023.02.07"]
[WhiteClock "0:00:02"]
[BlackClock "0:00:01"]

1. e4 {[%clk 0:02:56]}  e5 {[%clk 0:02:56]} 2. Nf3 {[%clk 0:02:56]}  Nc6 {[%clk 0:02:56]} 3. Bb5 {[%clk 0:02:56]}  a6 {[%clk 0:02:56]} 4. Ba4 {[%clk 0:02:56]}  Bc5 {[%clk 0:02:55]} 5. O-O {[%clk 0:02:56]}  Nge7 {[%clk 0:02:55]} 6. c3 {[%clk 0:02:56]}  Ng6 {[%clk 0:02:55]} 7. d4 {[%clk 0:02:56]}  Ba7 {[%clk 0:02:55]} 8. Bg5 {[%clk 0:02:53]}  f6 {[%clk 0:02:55]} 9. Be3 {[%clk 0:02:49]}  O-O {[%clk 0:02:54]} 10. Nbd2 {[%clk 0:02:49]}  d6 {[%clk 0:02:47]} 11. Re1 {[%clk 0:02:49]}  Kh8 {[%clk 0:02:45]} 12. Nf1 {[%clk 0:02:48]}  Bg4 {[%clk 0:02:44]} 13. Bxc6 {[%clk 0:02:36]}  Nh4 {[%clk 0:02:15]} 14. N1d2 {[%clk 0:01:40]}  bxc6 {[%clk 0:02:10]} 15. h3 {[%clk 0:01:40]}  Nxf3+ {[%clk 0:01:56]} 16. Nxf3 {[%clk 0:01:40]}  Bh5 {[%clk 0:01:57]} 17. g4 {[%clk 0:01:40]}  Bg6 {[%clk 0:01:55]} 18. dxe5 {[%clk 0:01:34]}  fxe5 {[%clk 0:01:24]} 19. Bxa7 {[%clk 0:01:32]}  Rxa7 {[%clk 0:01:25]} 20. Kg2 {[%clk 0:01:26]}  Rf4 {[%clk 0:00:50]} 21. Nxe5 {[%clk 0:01:12]}  Be8 {[%clk 0:00:27]} 22. Nd3 {[%clk 0:00:58]}  Rf8 {[%clk 0:00:26]} 23. e5 {[%clk 0:00:51]}  c5 {[%clk 0:00:24]} 24. e6 {[%clk 0:00:43]}  Bc6+ {[%clk 0:00:24]} 25. Kg1 {[%clk 0:00:43]}  Qe7 {[%clk 0:00:22]} 26. Qd2 {[%clk 0:00:33]}  Raa8 {[%clk 0:00:20]} 27. Rad1 {[%clk 0:00:20]}  Rf3 {[%clk 0:00:13]} 28. Re3 {[%clk 0:00:19]}  Raf8 {[%clk 0:00:14]} 29. Rxf3 {[%clk 0:00:17]}  Rxf3 {[%clk 0:00:15]} 30. Nf4 {[%clk 0:00:16]}  Qh4 {[%clk 0:00:09]} 31. e7 {[%clk 0:00:08]}  Rxh3 {[%clk 0:00:03]} 32. e8=Q+ {[%clk 0:00:08]}  Bxe8 {[%clk 0:00:03]} 33. Nxh3 {[%clk 0:00:09]}  Qxh3 {[%clk 0:00:03]} 34. Qf4 {[%clk 0:00:09]}  Bf7 {[%clk 0:00:01]} 35. Re1 {[%clk 0:00:05]}  Bg8 {[%clk 0:00:02]} 36. Re8 {[%clk 0:00:02]}  h6 {[%clk 0:00:01]} 37. Qf5 {[%clk 0:00:02]} 1-0


[Site "https://www.chess.com"]